bitfinex/quotes_SOLUSD_20240620
["timestamp","ask_amount","ask_price","bid_price","bid_amount"]
[1718896425659,0.17,134.62,134.51,22.39]
[1718896425872,16.0541,134.61,134.52,27.4334]
[1718896427072,16.0541,134.61,134.52,7.4334]
[1718896427664,0.17,134.6,134.52,7.4334]
[1718896427974,6.4553,134.59,134.5,7.4347]
[1718896428958,6.4553,134.59,134.51,7.4342]
[1718896429354,0.17,134.58,134.5,7.4348]
[1718896430179,0.17,134.58,134.5,7.4346]
[1718896431355,6.4553,134.59,134.53,7.433]
[1718896431572,6.4553,134.59,134.52,7.4335]
[1718896431977,6.4553,134.59,134.53,7.91940297]
[1718896432284,6.4553,134.59,134.54,0.48626681]
[1718896432453,6.4553,134.59,134.54,7.91876681]
[1718896432654,6.4553,134.59,134.49,0.17]
[1718896432868,6.4553,134.59,134.51,7.4341]
[1718896433577,6.4553,134.59,134.5,7.4347]
[1718896433783,0.17,134.58,134.5,7.4347]
[1718896434156,6.4553,134.59,134.53,7.4329]
[1718896434977,6.4553,134.59,134.51,18.585]
[1718896435182,6.4553,134.59,134.52,45.17]
[1718896435473,6.4553,134.59,134.55,7.4319]
[1718896435676,6.4553,134.59,134.54,7.4324]
[1718896435890,6.4553,134.59,134.53,7.433]
[1718896436180,6.4553,134.59,134.54,7.4326]
[1718896436498,6.4553,134.59,134.52,45.17]
[1718896436685,6.4553,134.59,134.51,7.4341]
[1718896436855,6.4553,134.59,134.5,0.17]
[1718896436856,6.4553,134.59,134.52,7.4338]
[1718896437056,6.4553,134.59,134.51,7.4341]
[1718896440782,6.4553,134.59,134.52,7.4337]
[1718896440994,6.4553,134.59,134.53,7.6032]
[1718896441188,16.0541,134.61,134.56,7.4314]
[1718896441358,16.0541,134.61,134.57,7.4308]
[1718896441561,16.0541,134.61,134.56,7.4314]
[1718896442277,16.0541,134.61,134.56,7.4315]
[1718896442478,16.0541,134.61,134.55,7.6017]
[1718896442669,16.0541,134.61,134.56,45.0]
[1718896443475,16.0541,134.61,134.54,0.17]
[1718896443795,16.0541,134.61,134.53,7.6029]
[1718896444090,16.0541,134.61,134.54,52.4326]
[1718896444778,16.0541,134.61,134.53,0.17]
[1718896444972,16.0541,134.61,134.54,7.4323]
[1718896445291,16.0541,134.61,134.56,7.4312]
[1718896445499,16.0541,134.61,134.55,7.4318]
[1718896445854,16.0541,134.61,134.54,7.4326]
[1718896446261,16.0541,134.61,134.55,45.0]
[1718896446478,16.0541,134.61,134.56,7.4312]
[1718896447262,16.0541,134.61,134.55,7.6019]
[1718896449661,16.0541,134.61,134.5,20.0]
[1718896449864,16.0541,134.61,134.48,34.453]
[1718896450065,16.0541,134.61,134.52,7.4338]
[1718896450280,16.0541,134.61,134.49,18.5875]
[1718896450565,16.0541,134.61,134.51,7.434]
[1718896450764,0.17,134.6,134.52,7.4337]
[1718896450986,16.0541,134.61,134.53,7.4329]
[1718896451182,16.0541,134.61,134.52,7.4337]
[1718896451391,0.17,134.6,134.51,7.6042]
[1718896451686,0.17,134.6,134.5,7.4347]
[1718896451892,6.5514,134.59,134.5,7.4347]
[1718896452187,6.5514,134.59,134.49,7.4352]
[1718896452391,15.461,134.57,134.49,7.4352]
[1718896453766,15.461,134.57,134.48,0.17]
[1718896453969,15.461,134.57,134.46,15.461]
[1718896454183,15.461,134.57,134.48,7.4358]
[1718896454375,0.17,134.56,134.48,7.4358]
[1718896454894,0.17,134.56,134.49,7.4352]
[1718896455186,0.17,134.56,134.49,1.48422302]
[1718896455589,15.461,134.57,134.49,1.48422302]
[1718896455788,15.461,134.57,134.48,22.73]
[1718896455974,15.461,134.57,134.53,7.4328]
[1718896456584,15.461,134.57,134.52,7.4336]
[1718896460185,15.461,134.57,134.51,7.4341]
[1718896460389,15.461,134.57,134.48,7.4355]
[1718896460576,15.461,134.57,134.44,85.75528114]
[1718896460777,15.461,134.57,134.44,40.97528114]
[1718896460971,15.461,134.57,134.45,7.26522285]
[1718896461175,15.461,134.57,134.52,7.4334]
[1718896461366,15.461,134.57,134.51,7.4342]
[1718896461693,15.461,134.57,134.51,7.4341]
[1718896462192,15.461,134.57,134.52,7.4336]
[1718896463389,15.461,134.57,134.51,7.4341]
[1718896464269,15.461,134.57,134.53,7.4328]
[1718896464493,15.461,134.57,134.46,24.08040235]
[1718896464696,15.461,134.57,134.56,7.4316]
[1718896464994,6.5514,134.59,134.56,7.4313]
[1718896465297,15.0531,134.61,134.49,6.2218]
[1718896465298,15.0531,134.61,134.57,7.4308]
[1718896466081,15.0531,134.61,134.56,7.4315]
[1718896466392,15.0531,134.61,134.55,7.4318]
[1718896467798,15.0531,134.61,134.54,7.4325]
[1718896469015,15.0531,134.61,134.54,7.4323]
[1718896469497,15.0531,134.61,134.55,6.22444349]
[1718896470181,15.0531,134.61,134.53,7.433]
[1718896470377,0.17,134.6,134.51,7.4342]
[1718896470590,15.8248,134.58,134.51,7.4342]
[1718896470782,15.8248,134.58,134.52,7.4337]
[1718896470978,15.8248,134.58,134.54,7.4322]
[1718896471898,15.8248,134.58,134.49,22.36]
[1718896471899,15.8248,134.58,134.53,7.433]
[1718896472274,15.8248,134.58,134.54,7.4326]
[1718896473385,15.8248,134.58,134.53,7.433]
[1718896474481,15.8248,134.58,134.54,7.4327]
[1718896474691,15.8248,134.58,134.53,7.433]
[1718896475386,15.8248,134.58,134.54,7.4326]
[1718896476285,15.8248,134.58,134.55,1.48478553]
[1718896477007,15.8248,134.58,134.53,1.48478553]
[1718896477804,15.8248,134.58,134.49,40.9483]
[1718896477805,15.8248,134.58,134.47,17.54507441]
[1718896477979,43.7248,134.58,134.49,7.435]
[1718896478913,43.7248,134.58,134.5,7.4349]
[1718896481190,43.7248,134.58,134.47,1.72027441]
[1718896481393,16.4612,134.55,134.48,7.4356]
[1718896481584,44.3612,134.55,134.47,1.72027441]
[1718896481783,0.17,134.54,134.47,1.72027441]
[1718896482786,0.17,134.54,134.46,7.437]
[1718896482994,0.17,134.54,134.48,7.4356]
[1718896483314,16.4612,134.55,134.45,0.17]
[1718896483498,16.4612,134.55,134.5,7.4345]
[1718896483806,16.4612,134.55,134.49,7.4353]
[1718896484399,16.4612,134.55,134.48,0.17]
[1718896484893,16.4612,134.55,134.48,87.7]
[1718896485088,16.4612,134.55,134.52,7.4335]
[1718896485283,16.4612,134.55,134.53,2.70757416]
[1718896485489,7.77099442,134.63,134.55,7.4318]
[1718896485490,16.2273,134.59,134.55,7.4318]
[1718896485807,16.2273,134.59,134.56,2.70717713]
[1718896485999,16.2273,134.59,134.56,7.4314]
[1718896486308,16.2273,134.59,134.57,2.70657361]
[1718896486686,15.4102,134.62,134.57,2.70657361]
[1718896486883,15.4102,134.62,134.58,2.70637249]
[1718896488005,15.4102,134.62,134.51,22.36]
[1718896488307,15.4102,134.62,134.55,7.432]
[1718896488492,15.4102,134.62,134.56,7.4314]
[1718896489496,15.4102,134.62,134.55,7.4319]
[1718896489696,15.4102,134.62,134.52,45.34]
[1718896489901,15.4102,134.62,134.53,7.4332]
[1718896489902,0.17,134.61,134.53,7.4332]
[1718896490317,0.17,134.61,134.52,7.4335]
[1718896490888,15.4102,134.62,134.51,67.53]
[1718896491090,15.4102,134.62,134.52,0.34]
[1718896491291,15.4102,134.62,134.56,7.4312]
[1718896491710,15.4102,134.62,134.57,0.5094089]
[1718896492097,15.4102,134.62,134.57,0.50912504]
[1718896492292,15.4102,134.62,134.53,18.7521]
[1718896492293,15.4102,134.62,134.54,0.54409308]
[1718896492619,15.4102,134.62,134.56,7.4313]
[1718896492810,15.4102,134.62,134.55,0.34]
[1718896492811,15.4102,134.62,134.57,0.54400131]
[1718896493115,15.4102,134.62,134.55,0.17]
[1718896493412,15.4102,134.62,134.55,52.6017]
[1718896494723,15.4102,134.62,134.55,7.4317]
[1718896495017,15.4102,134.62,134.56,1.48393064]
[1718896495387,15.4102,134.62,134.56,8.91553064]
[1718896495814,15.4102,134.62,134.57,2.01788845]
[1718896496702,15.4102,134.62,134.56,2.01851565]
[1718896497294,15.4102,134.62,134.56,45.0]
[1718896497495,15.4102,134.62,134.59,7.4296]
[1718896497710,15.4102,134.62,134.6,1.48332899]
[1718896497912,16.1968,134.69,134.58,28.7438]
[1718896498115,16.1968,134.69,134.61,0.17]
[1718896498621,16.1968,134.69,134.62,7.4282]
[1718896498798,16.1968,134.69,134.63,2.96679117]
[1718896499719,16.1968,134.69,134.61,0.17]
[1718896499902,16.1968,134.69,134.61,7.4285]
[1718896502116,16.1968,134.69,134.6,0.17]
[1718896502697,16.1968,134.69,134.64,7.427]
[1718896503419,16.1968,134.69,134.63,0.17]
[1718896503625,16.1968,134.69,134.65,7.4266]
[1718896503811,16.1968,134.69,134.64,7.4269]
[1718896504116,16.1968,134.69,134.55,16.2108]
[1718896504321,45.17,134.68,134.58,7.4302]
[1718896504618,15.8926,134.67,134.57,7.4308]
[1718896504816,51.4318,134.66,134.54,25.1429]
[1718896505221,51.4318,134.66,134.58,7.4303]
[1718896505222,6.4318,134.66,134.58,7.4303]
[1718896505805,6.4318,134.66,134.54,47.5029]
[1718896506014,16.2228,134.64,134.55,7.4319]
[1718896506413,0.17,134.63,134.55,7.4319]
[1718896506719,0.17,134.63,134.51,7.4342]
[1718896506720,15.8448,134.61,134.51,7.4342]
[1718896507022,21.9954,134.59,134.5,7.4346]
[1718896507322,0.17,134.58,134.5,7.4346]
[1718896507624,27.92,134.54,134.45,9.15793031]
[1718896507800,15.4753,134.53,134.45,1.72053031]
[1718896508403,15.4753,134.53,134.47,7.4364]
[1718896508610,6.3026,134.52,134.45,9.15773031]
[1718896509202,27.92,134.51,134.45,1.72053031]
[1718896509407,6.3026,134.52,134.45,1.72053031]
[1718896509596,6.6462,134.55,134.47,22.36]
[1718896510008,6.6462,134.55,134.5,7.4348]
[1718896510214,6.6462,134.55,134.47,22.36]
[1718896510426,6.6462,134.55,134.48,45.51]
[1718896510607,6.6462,134.55,134.48,0.51]
[1718896511011,6.6462,134.55,134.48,7.9456]
[1718896511215,6.6462,134.55,134.49,7.4354]
[1718896511940,15.5958,134.57,134.48,0.51]
[1718896511941,15.5958,134.57,134.5,45.0]
[1718896512107,15.5958,134.57,134.54,7.4322]
[1718896512315,22.1253,134.62,134.55,7.4321]
[1718896512505,22.1253,134.62,134.52,40.9445]
[1718896512707,22.1253,134.62,134.53,45.51]
[1718896513018,22.1253,134.62,134.54,7.4325]
[1718896513529,22.1253,134.62,134.52,7.4336]
[1718896513714,0.17,134.61,134.51,7.434]
[1718896513912,45.17,134.61,134.52,7.4338]
[1718896514218,22.1253,134.62,134.55,7.4321]
[1718896514424,22.1253,134.62,134.54,7.4326]
[1718896515524,22.1253,134.62,134.55,0.72790356]
[1718896515722,45.17,134.61,134.51,7.4341]
[1718896515937,45.17,134.61,134.52,7.4338]
[1718896516116,0.17,134.61,134.53,7.4332]
[1718896516313,0.17,134.61,134.52,7.4335]
[1718896516516,0.17,134.61,134.51,7.4342]
[1718896516704,45.17,134.61,134.51,7.4342]
[1718896516910,45.17,134.61,134.49,7.4349]
[1718896517107,6.0481,134.59,134.49,7.4353]
[1718896517335,0.17,134.58,134.51,7.4343]
[1718896517516,0.17,134.58,134.5,7.4348]
[1718896517828,0.17,134.58,134.48,7.4358]
[1718896518415,0.17,134.58,134.46,6.6609]
[1718896518416,15.5104,134.57,134.45,1.72053031]
[1718896518612,6.0481,134.55,134.46,7.437]
[1718896518823,6.0481,134.55,134.4,284.46559714]
[1718896518824,15.5104,134.53,134.4,284.46559714]
[1718896519066,15.5104,134.53,134.43,7.4383]
[1718896519067,0.17,134.52,134.43,7.4383]
[1718896519339,0.17,134.52,134.4,18.6003]
[1718896519630,6.5965,134.51,134.41,7.4396]
[1718896519832,0.17,134.5,134.41,7.4396]
[1718896520046,0.17,134.5,134.38,43.9258]
[1718896520339,16.0183,134.49,134.4,7.4402]
[1718896520543,0.17,134.48,134.41,7.4398]
[1718896520836,0.17,134.48,134.42,2.26851349]
[1718896521247,16.0183,134.49,134.43,2.27866524]
[1718896521825,0.17,134.48,134.42,2.29308883]
[1718896522131,0.17,134.48,134.4,7.4402]
[1718896522327,45.17,134.48,134.37,7.4419]
[1718896522932,26.3486,134.47,134.36,7.4425]
[1718896523218,45.0,134.46,134.36,7.4425]
[1718896523422,0.17,134.45,134.36,7.4425]
[1718896523732,0.17,134.45,134.37,7.442]
[1718896524340,15.4553,134.44,134.31,18.6134]
[1718896524622,6.3774,134.42,134.28,18.6165]
[1718896524834,6.3774,134.42,134.27,396.04058029]
[1718896524835,20.17,134.41,134.27,3.87528315]
[1718896525048,45.0,134.4,134.3,7.4456]
[1718896525343,0.17,134.39,134.31,7.4454]
[1718896525844,0.17,134.39,134.32,7.4448]
[1718896526019,20.0,134.41,134.33,7.4441]
[1718896526223,0.17,134.4,134.32,7.4447]
[1718896526623,0.17,134.4,134.33,7.4443]
[1718896527749,0.17,134.4,134.31,7.6152]
[1718896528043,0.17,134.4,134.33,7.4443]
[1718896528347,0.17,134.4,134.32,7.4448]
[1718896528528,0.17,134.4,134.27,63.3391]
[1718896528729,45.17,134.4,134.28,20.0]
[1718896529058,0.17,134.4,134.3,7.4457]
[1718896529241,45.17,134.4,134.28,20.0]
[1718896529542,45.17,134.4,134.3,7.4455]
[1718896529948,20.0,134.39,134.29,7.4463]
[1718896530144,15.2289,134.38,134.29,7.4463]
[1718896531125,6.6138,134.37,134.29,7.4463]
[1718896531428,65.17,134.36,134.27,7.4472]
[1718896531933,15.1912,134.35,134.23,3.87528315]
[1718896532136,45.17,134.34,134.25,7.4487]
[1718896532329,20.0,134.33,134.25,7.4484]
[1718896532540,0.17,134.34,134.25,7.4484]
[1718896532758,20.17,134.34,134.25,7.4484]
[1718896533235,20.17,134.34,134.22,11.32518315]
[1718896533434,6.0722,134.32,134.22,3.87528315]
[1718896533665,0.17,134.31,134.22,3.87528315]
[1718896533865,20.17,134.31,134.22,11.32568315]
[1718896534242,20.17,134.31,134.23,7.4498]
[1718896534756,20.17,134.31,134.22,7.4502]
[1718896535228,60.1885,134.3,134.21,11.32598315]
[1718896535633,60.1885,134.3,134.21,7.4507]
[1718896535853,0.17,134.29,134.2,11.31463894]
[1718896536029,20.17,134.29,134.2,3.86323894]
[1718896536233,45.0,134.28,134.2,3.86323894]
[1718896536450,0.17,134.27,134.2,3.86323894]
[1718896537643,20.17,134.27,134.2,3.86323894]
[1718896537845,51.2899,134.26,134.19,3.86323894]
[1718896538046,0.17,134.25,134.19,3.86323894]
[1718896539052,15.3673,134.24,134.19,3.86323894]
[1718896539355,3.28829934,134.24,134.19,3.86323894]
[1718896539552,3.28829934,134.24,134.19,7.452]
[1718896539860,3.28829934,134.24,134.18,3.86323894]
[1718896540151,3.28829934,134.24,134.17,11.31613894]
[1718896540358,3.28829934,134.24,134.17,3.86323894]
[1718896540732,3.28829934,134.24,134.17,11.31623894]
[1718896541354,3.28829934,134.24,134.18,7.4525]
[1718896542439,3.28829934,134.24,134.17,3.86323894]
[1718896543159,3.28829934,134.24,134.17,11.31613894]
[1718896543548,3.28829934,134.24,134.17,3.86323894]
[1718896543862,3.28829934,134.24,134.17,11.31613894]
[1718896544861,6.2899,134.26,134.18,48.73645641]
[1718896545240,6.2899,134.26,134.19,7.4518]
[1718896545555,6.2899,134.26,134.18,7.4524]
[1718896546157,6.2899,134.26,134.19,7.452]
[1718896546359,0.17,134.25,134.18,7.4524]
[1718896546869,0.17,134.25,134.17,11.31623894]
[1718896547046,0.17,134.25,134.17,3.86323894]
[1718896547358,45.17,134.25,134.17,3.86323894]
[1718896548863,6.2899,134.26,134.17,3.86323894]
[1718896549100,6.2899,134.26,134.19,7.4518]
[1718896549271,6.2899,134.26,134.2,7.4511]
[1718896550159,6.2899,134.26,134.18,3.86323894]
[1718896550453,0.17,134.25,134.17,3.86323894]
[1718896550662,65.17,134.25,134.17,3.86323894]
[1718896551345,20.17,134.25,134.18,7.4526]
[1718896551552,20.17,134.25,134.17,3.86323894]
[1718896551750,45.0,134.24,134.17,3.86323894]
[1718896551960,0.17,134.23,134.17,3.86323894]
[1718896552952,0.17,134.23,134.18,3.86323894]
[1718896553246,6.2899,134.26,134.18,3.86323894]
[1718896553544,6.2899,134.26,134.19,5.72418368]
[1718896553945,6.2899,134.26,134.19,3.86323894]
[1718896554146,6.2899,134.26,134.19,11.31523894]
[1718896554368,6.2899,134.26,134.21,7.4509]
[1718896554568,6.2899,134.26,134.21,7.4507]
[1718896554864,15.7305,134.28,134.23,7.4498]
[1718896555179,6.163,134.3,134.24,7.4491]
[1718896555346,6.163,134.3,134.25,7.4487]
[1718896555676,6.163,134.3,134.24,7.4491]
[1718896556360,6.163,134.3,134.23,7.4496]
[1718896557153,15.1754,134.31,134.25,7.4484]
[1718896557358,6.163,134.33,134.26,52.448]
[1718896557759,6.163,134.33,134.28,7.4466]
[1718896557973,6.163,134.33,134.26,52.448]
[1718896558358,6.163,134.33,134.27,1.48688433]
[1718896558559,6.163,134.33,134.24,0.17]
[1718896558757,6.163,134.33,134.23,11.31293894]
[1718896559369,0.17,134.32,134.24,7.4492]
[1718896559682,0.17,134.32,134.25,7.4485]
[1718896559887,6.163,134.33,134.23,26.22323894]
[1718896560054,6.163,134.33,134.24,67.87]
[1718896560253,6.163,134.33,134.26,7.4478]
[1718896560453,6.163,134.33,134.27,7.4475]
[1718896560789,6.163,134.33,134.26,7.4482]
[1718896560960,6.163,134.33,134.27,7.4476]
[1718896561368,6.163,134.33,134.26,7.448]
[1718896561575,6.163,134.33,134.23,11.31323894]
[1718896561772,0.17,134.32,134.23,11.31283894]
[1718896562459,0.17,134.32,134.23,7.4496]
[1718896563355,15.1754,134.34,134.25,22.36]
[1718896563562,6.0998,134.36,134.24,65.17]
[1718896563563,6.0998,134.36,134.32,7.4448]
[1718896563766,16.1693,134.38,134.32,7.4448]
[1718896563967,16.1693,134.38,134.27,6.6514]
[1718896564184,16.1693,134.38,134.28,7.4467]
[1718896564775,16.1693,134.38,134.26,35.7016]
[1718896564776,16.1693,134.38,134.31,7.4454]
[1718896564971,16.1693,134.38,134.32,0.17]
[1718896565149,21.5534,134.45,134.35,7.4427]
[1718896565550,21.5534,134.45,134.32,0.17]
[1718896565777,21.5534,134.45,134.35,7.4427]
[1718896565983,21.5534,134.45,134.32,22.53]
[1718896566156,21.5534,134.45,134.37,7.442]
[1718896567561,21.5534,134.45,134.33,41.3096]
[1718896567756,21.5534,134.45,134.35,7.443]
[1718896568088,21.5534,134.45,134.34,52.4437]
[1718896568265,21.5534,134.45,134.34,45.0]
[1718896568763,45.17,134.44,134.34,52.4436]
[1718896568958,0.17,134.44,134.36,7.4426]
[1718896569176,0.17,134.44,134.37,7.4421]
[1718896570060,21.5534,134.45,134.37,7.4421]
[1718896570260,21.5534,134.45,134.36,7.4424]
[1718896571272,21.5534,134.45,134.37,1.48600581]
[1718896571472,21.5534,134.45,134.39,7.4409]
[1718896571680,21.5534,134.45,134.4,1.48567411]
[1718896571977,21.5534,134.45,134.39,7.4407]
[1718896572191,21.5534,134.45,134.38,7.4414]
[1718896572383,21.5534,134.45,134.37,0.17]
[1718896572678,21.5534,134.45,134.39,7.4407]
[1718896572994,21.5534,134.45,134.37,22.87]
[1718896573193,21.5534,134.45,134.4,7.44]
[1718896573483,1.2152,134.47,134.42,7.4393]
[1718896573662,1.2152,134.47,134.41,0.17]
[1718896574285,1.2152,134.47,134.42,7.4391]
[1718896574782,1.2152,134.47,134.43,7.4388]
[1718896574999,1.2152,134.47,134.41,0.17]
[1718896575161,1.2152,134.47,134.46,7.4371]
[1718896575875,1.2152,134.47,134.44,7.438]
[1718896576067,1.2152,134.47,134.45,52.4375]
[1718896576493,1.2152,134.47,134.46,7.4371]
[1718896576693,1.2152,134.47,134.46,52.9471]
[1718896576893,1.2152,134.47,134.46,120.4896]
[1718896578603,22.336,134.57,134.48,22.36]
[1718896578767,22.336,134.57,134.5,22.36]
[1718896578970,22.9405,134.62,134.51,87.87]
[1718896579200,22.9405,134.62,134.56,7.4314]
[1718896579396,22.9405,134.62,134.55,7.432]
[1718896579611,22.9405,134.62,134.55,7.4319]
[1718896580404,22.9405,134.62,134.54,7.6024]
[1718896580614,22.9405,134.62,134.55,52.4318]
[1718896581203,6.6179,134.65,134.58,7.4302]
[1718896581496,6.6179,134.65,134.56,7.4312]
[1718896582194,6.6179,134.65,134.55,52.432]
[1718896582401,0.17,134.64,134.51,20.0]
[1718896582572,0.17,134.64,134.47,83.7957]
[1718896582783,0.17,134.64,134.55,7.4318]
[1718896582972,0.17,134.64,134.53,7.433]
[1718896582973,45.17,134.64,134.53,7.433]
[1718896583169,45.17,134.64,134.5,18.587]
[1718896583373,0.17,134.64,134.54,7.4324]
[1718896583590,45.17,134.64,134.54,7.4324]
[1718896583798,45.17,134.64,134.48,1.72014649]
[1718896584011,45.17,134.64,134.52,7.4335]
[1718896584377,45.17,134.64,134.53,7.4332]
[1718896584895,45.17,134.64,134.51,0.17]
[1718896585077,0.17,134.64,134.51,0.17]
[1718896585401,65.17,134.64,134.52,7.4336]
[1718896585698,45.17,134.64,134.52,7.4336]
[1718896586008,45.17,134.64,134.53,7.4332]
[1718896587677,15.5507,134.63,134.5,45.17]
[1718896587896,6.5275,134.61,134.52,7.4338]
[1718896588103,0.17,134.6,134.51,7.4342]
[1718896588270,15.9365,134.59,134.48,1.72014649]
[1718896588471,6.3404,134.57,134.46,7.4369]
[1718896588689,6.3404,134.57,134.45,7.4375]
[1718896588690,0.17,134.56,134.45,7.4375]
[1718896588887,15.6423,134.55,134.45,7.4375]
[1718896589114,0.17,134.54,134.44,7.438]
[1718896589276,45.17,134.54,134.42,643.5]
[1718896589599,45.17,134.54,134.39,68.722348]
[1718896589600,6.2304,134.53,134.39,68.722348]
[1718896589905,6.2304,134.53,134.42,7.4392]
[1718896589906,45.17,134.52,134.42,7.4392]
[1718896590085,45.17,134.52,134.38,28.7823]
[1718896590086,45.17,134.52,134.43,7.4387]
[1718896590279,0.17,134.52,134.44,7.4381]
[1718896590809,45.17,134.52,134.4,40.96]
[1718896591179,45.17,134.52,134.43,7.4383]
[1718896591908,45.17,134.52,134.38,6.4223]
[1718896591909,6.6346,134.5,134.38,7.4412]
[1718896592208,0.17,134.49,134.42,7.4391]
[1718896592588,0.17,134.49,134.41,7.4398]
[1718896592905,0.17,134.49,134.4,7.4402]
[1718896593204,0.17,134.49,134.37,40.965]
[1718896593510,0.17,134.49,134.34,29.812677]
[1718896593692,15.1175,134.48,134.34,29.812677]
[1718896593892,0.17,134.47,134.36,7.4424]
[1718896594209,6.5058,134.46,134.36,7.4426]
[1718896594423,0.17,134.45,134.35,7.4429]
[1718896594593,0.17,134.45,134.36,7.4426]
[1718896595693,0.17,134.45,134.32,18.612]
[1718896595906,45.17,134.45,134.32,18.612]
[1718896596207,45.17,134.45,134.33,40.9695]
[1718896596405,0.17,134.45,134.37,7.4418]
[1718896597092,0.17,134.45,134.36,7.4424]
[1718896599325,6.5058,134.46,134.37,45.17]
[1718896599496,6.5058,134.46,134.37,45.0]
[1718896599998,6.5058,134.46,134.39,7.4407]
[1718896600200,6.5058,134.46,134.38,0.17]
[1718896600616,6.5058,134.46,134.39,7.4405]
[1718896600810,6.5058,134.46,134.38,0.17]
[1718896600992,6.5058,134.46,134.38,20.51]
[1718896601196,6.5058,134.46,134.39,52.4407]
[1718896601722,6.5058,134.46,134.38,0.17]
[1718896601936,6.5058,134.46,134.37,45.0]
[1718896602120,0.17,134.45,134.36,45.0]
[1718896602430,0.17,134.45,134.35,7.443]
[1718896602818,0.17,134.45,134.33,40.9705]
[1718896603013,6.5058,134.46,134.34,60.9684]
[1718896603205,6.5058,134.46,134.34,62.69033911]
[1718896603405,0.17,134.45,134.36,7.4423]
[1718896603605,0.17,134.45,134.37,7.442]
[1718896604828,0.17,134.45,134.36,7.4424]
[1718896605039,0.17,134.45,134.37,45.17]
[1718896605537,0.17,134.45,134.35,7.4429]
[1718896605738,0.17,134.45,134.36,7.4426]
[1718896606402,0.17,134.45,134.35,7.443]
[1718896606818,0.17,134.45,134.36,7.4426]
[1718896608107,0.17,134.45,134.35,7.4429]
[1718896608407,0.17,134.45,134.34,21.89193911]
[1718896608610,0.17,134.45,134.37,7.4419]
[1718896612126,12.45564078,134.46,134.37,7.4419]
[1718896612332,12.45564078,134.46,134.38,7.4414]
[1718896612528,12.45564078,134.46,134.4,7.4402]
[1718896612754,6.5058,134.46,134.39,0.17]
[1718896612915,6.5058,134.46,134.41,7.4396]
[1718896613122,15.1175,134.48,134.43,7.4385]
[1718896613319,15.1175,134.48,134.4,22.7]
[1718896613617,15.1175,134.48,134.42,7.4392]
[1718896613831,15.1175,134.48,134.43,45.17]
[1718896614818,15.1175,134.48,134.37,22.36]
[1718896615131,15.1175,134.48,134.36,6.1254]
[1718896615132,15.1175,134.48,134.39,18.6024]
[1718896615338,15.1175,134.48,134.4,45.51]
[1718896615516,15.1175,134.48,134.41,7.4394]
[1718896615939,15.1175,134.48,134.4,52.9503]
[1718896616119,15.1175,134.48,134.4,45.17]
[1718896616321,15.1175,134.48,134.38,7.4413]
[1718896616521,0.17,134.47,134.38,7.4413]
[1718896616935,0.17,134.47,134.37,7.4418]
[1718896617125,45.17,134.47,134.32,13.74137492]
[1718896617447,6.3413,134.46,134.33,20.0]
[1718896617737,6.3413,134.46,134.35,7.4429]
[1718896617927,6.3413,134.46,134.3,258.6]
[1718896617928,81.7063,134.45,134.3,258.6]